bitfinex/quotes_ETHUSD_20220309
["timestamp","ask_amount","ask_price","bid_price","bid_amount"]
[1646829842836,0.65320301,2735.6,2734.8,0.445]
[1646829843039,1.49102135,2735.5,2734.9,11.4431]
[1646829843237,595.20972848,2735.7,2735.1,11.4431]
[1646829843238,1.49102135,2735.4,2735.1,11.4431]
[1646829843437,594.29577848,2735.7,2735.5,11.08]
[1646829843637,1.49131461,2735.6,2735.5,9.91867743]
[1646829843840,594.29577848,2735.7,2735.5,10.99397164]
[1646829844236,579.00107848,2735.7,2735.6,0.3631]
[1646829844436,565.78497848,2735.7,2735.6,0.445]
[1646829844639,565.78497848,2735.7,2735.6,14.65529421]
[1646829844845,565.78497848,2735.7,2735.6,16.10029421]
[1646829845140,565.78497848,2735.7,2735.6,12.96339421]
[1646829845742,565.68497848,2735.7,2735.6,12.96339421]
[1646829846582,551.29732867,2735.7,2735.6,13.26339421]
[1646829846784,540.98570365,2735.7,2735.6,13.45896172]
[1646829847682,535.31137213,2735.7,2735.6,17.09816172]
[1646829847881,535.31137213,2735.7,2735.6,18.19496172]
[1646829848084,529.83050923,2735.7,2735.6,18.19336172]
[1646829848282,524.34948923,2735.7,2735.6,18.19496172]
[1646829848685,518.69849909,2735.7,2735.6,18.19496172]
[1646829848887,499.8520042,2735.7,2735.6,21.19806172]
[1646829849083,499.8520042,2735.7,2735.6,22.20526172]
[1646829849084,499.07871078,2735.7,2735.6,22.20526172]
[1646829849283,488.11804508,2735.7,2735.6,27.77026172]
[1646829849484,488.11804508,2735.7,2735.6,28.3978054]
[1646829849685,462.87835171,2735.7,2735.6,29.3142554]
[1646829849930,459.22684571,2735.7,2735.6,38.8117554]
[1646829850127,459.22684571,2735.7,2735.6,37.17688506]
[1646829850128,453.74710571,2735.7,2735.6,37.17688506]
[1646829850327,448.26721571,2735.7,2735.6,36.17138506]
[1646829850525,448.26721571,2735.7,2735.6,32.66978506]
[1646829850730,442.78700571,2735.7,2735.6,32.67298506]
[1646829850929,441.6274366,2735.7,2735.6,32.67378506]
[1646829851132,441.6274366,2735.7,2735.6,32.67458506]
[1646829851342,441.6274366,2735.7,2735.6,32.70009751]
[1646829851343,436.1469666,2735.7,2735.6,32.70009751]
[1646829851535,436.1469666,2735.7,2735.6,35.70479751]
[1646829851832,436.1469666,2735.7,2735.6,32.06917002]
[1646829851833,430.6665366,2735.7,2735.6,32.06917002]
[1646829852031,430.6665366,2735.7,2735.6,32.05957002]
[1646829852234,425.1857366,2735.7,2735.6,32.06277002]
[1646829852435,425.1857366,2735.7,2735.6,32.05717002]
[1646829852634,425.1857366,2735.7,2735.6,32.05877002]
[1646829852835,417.5452826,2735.7,2735.6,32.06117002]
[1646829853036,417.5452826,2735.7,2735.6,35.07467002]
[1646829853336,417.5452826,2735.7,2735.6,40.91963206]
[1646829853337,411.7228355,2735.7,2735.6,40.91963206]
[1646829853576,411.7228355,2735.7,2735.6,38.07707002]
[1646829853779,406.2424155,2735.7,2735.6,35.06997002]
[1646829853979,406.2424155,2735.7,2735.6,35.06517002]
[1646829854184,406.2424155,2735.7,2735.6,35.06837002]
[1646829854383,400.7620255,2735.7,2735.6,35.06757002]
[1646829854586,400.7620255,2735.7,2735.6,31.85834036]
[1646829854785,400.7620255,2735.7,2735.6,12.86177285]
[1646829855082,400.7620255,2735.7,2735.6,23.84115]
[1646829855884,400.7620255,2735.7,2735.6,12.76115]
[1646829856984,400.7620255,2735.7,2735.6,23.84115]
[1646829857185,400.7620255,2735.7,2735.6,12.76115]
[1646829857446,400.7620255,2735.7,2735.6,11.8479]
[1646829858242,400.7620255,2735.7,2735.6,8.8479]
[1646829858842,400.7620255,2735.7,2735.6,9.8479]
[1646829859046,400.7620255,2735.7,2735.6,21.2279]
[1646829859242,400.7620255,2735.7,2735.6,22.14165]
[1646829859646,400.7620255,2735.7,2735.6,22.33721751]
[1646829861092,395.2814955,2735.7,2735.6,25.33711751]
[1646829861296,388.44367175,2735.7,2735.6,32.17357722]
[1646829861490,324.70664752,2735.7,2735.6,33.75713354]
[1646829861693,324.70664752,2735.7,2735.6,35.68279882]
[1646829861694,304.21990923,2735.7,2735.6,35.68279882]
[1646829861891,298.65490923,2735.7,2735.6,36.69639882]
[1646829862094,298.65490923,2735.7,2735.6,39.83313597]
[1646829862095,290.69831563,2735.7,2735.6,39.83313597]
[1646829862294,290.69831563,2735.7,2735.6,38.883247]
[1646829862490,288.92349637,2735.7,2735.6,38.865647]
[1646829862691,283.44361637,2735.7,2735.6,38.875247]
[1646829862890,281.35929304,2735.7,2735.6,41.034647]
[1646829863092,281.35929304,2735.7,2735.6,37.94136289]
[1646829863290,275.87953304,2735.7,2735.6,37.241547]
[1646829863492,275.87953304,2735.7,2735.6,34.59296949]
[1646829863696,268.79325735,2735.7,2735.6,34.57456949]
[1646829863891,268.79325735,2735.7,2735.6,34.57936949]
[1646829864092,268.79325735,2735.7,2735.6,37.775637]
[1646829864293,263.31252735,2735.7,2735.6,33.474937]
[1646829864493,263.31252735,2735.7,2735.6,32.25216949]
[1646829864696,263.31252735,2735.7,2735.6,26.54956949]
[1646829864937,263.31252735,2735.7,2735.6,24.38320978]
[1646829865138,263.31252735,2735.7,2735.6,12.76109]
[1646829865338,263.31252735,2735.7,2735.2,0.445]
[1646829865339,2.60391,2735.6,2735.2,0.445]
[1646829865540,2.60391,2735.6,2735.4,1.092]
[1646829865734,2.633078,2735.6,2735.4,1.092]
[1646829866535,2.633078,2735.6,2735.4,2.00585]
[1646829866737,2.63667067,2735.6,2735.4,2.00585]
[1646829867339,0.03276067,2735.6,2735.4,2.00585]
[1646829867536,0.029168,2735.6,2735.4,2.00585]
[1646829867936,0.03276067,2735.6,2735.4,2.00585]
[1646829868776,0.029168,2735.6,2735.4,2.00585]
[1646829868983,0.00361091,2735.6,2735.4,2.00585]
[1646829869782,0.00361091,2735.6,2735.5,7.18930165]
[1646829869986,263.31252735,2735.7,2735.6,1.092]
[1646829870181,263.31252735,2735.7,2735.6,1.66652414]
[1646829870382,263.31252735,2735.7,2735.6,1.73256751]
[1646829870783,263.31252735,2735.7,2735.6,4.73256751]
[1646829870985,263.31252735,2735.7,2735.6,6.55977751]
[1646829871187,263.31252735,2735.7,2735.6,7.55977751]
[1646829871383,263.31252735,2735.7,2735.6,7.68932784]
[1646829871584,263.31252735,2735.7,2735.6,18.63977751]
[1646829872187,263.31252735,2735.7,2735.6,18.44421]
[1646829872455,263.31252735,2735.7,2735.6,5.092]
[1646829873047,264.27503509,2735.7,2735.6,5.092]
[1646829873947,263.31252735,2735.7,2735.6,5.092]
[1646829874748,263.31252735,2735.7,2735.6,4.092]
[1646829875550,263.31252735,2735.7,2735.2,1.092]
[1646829875551,6.5,2735.6,2735.2,1.092]
[1646829875750,6.529168,2735.6,2735.2,1.092]
[1646829876585,6.529168,2735.6,2735.2,2.00591]
[1646829876986,263.61634267,2735.7,2735.2,2.00591]
[1646829877183,263.61634267,2735.7,2735.3,0.32564034]
[1646829877184,263.61252735,2735.7,2735.3,0.32564034]
[1646829877382,263.31252735,2735.7,2735.5,1.092]
[1646829877583,263.31367195,2735.7,2735.5,1.092]
[1646829877787,3.5,2735.6,2735.5,1.092]
[1646829877982,263.68286628,2735.7,2735.5,1.092]
[1646829878182,263.38286628,2735.7,2735.5,1.092]
[1646829878383,263.38172168,2735.7,2735.5,2.09953668]
[1646829878585,263.38286636,2735.7,2735.5,2.09953668]
[1646829878783,263.38286636,2735.7,2735.5,13.62453668]
[1646829878986,263.38286636,2735.7,2735.6,0.13020218]
[1646829879384,263.38286636,2735.7,2735.6,1.66720218]
[1646829879584,263.38172168,2735.7,2735.6,0.64983503]
[1646829879861,263.38172168,2735.7,2735.6,1.09483503]
[1646829881668,263.38172168,2735.7,2735.6,1.82813503]
[1646829881867,263.38172168,2735.7,2735.6,2.02370254]
[1646829882266,263.35865691,2735.7,2735.6,13.10370254]
[1646829882467,257.87794691,2735.7,2735.6,13.10370254]
[1646829882666,257.87794691,2735.7,2735.6,14.10370254]
[1646829882867,252.39731691,2735.7,2735.6,14.40370254]
[1646829883072,249.98902971,2735.7,2735.6,14.40370254]
[1646829883466,249.98902971,2735.7,2735.6,21.85140254]
[1646829883467,244.50841971,2735.7,2735.6,21.85140254]
[1646829883683,242.90291948,2735.7,2735.6,21.85219496]
[1646829883985,237.42243948,2735.7,2735.6,21.85379496]
[1646829884185,237.42243948,2735.7,2735.6,22.76158496]
[1646829884385,237.42243948,2735.7,2735.6,22.62398496]
[1646829884585,237.42243948,2735.7,2735.6,22.76238496]
[1646829884783,237.42243948,2735.7,2735.6,23.31350877]
[1646829884986,231.94184948,2735.7,2735.6,24.63654878]
[1646829885191,231.94184948,2735.7,2735.6,23.31190877]
[1646829885389,231.94184948,2735.7,2735.6,22.02988496]
[1646829885591,231.94184948,2735.7,2735.6,25.02988496]
[1646829885791,231.94184948,2735.7,2735.6,24.89068496]
[1646829885992,231.94184948,2735.7,2735.6,7.96073503]
[1646829886389,233.02249318,2735.7,2735.6,7.96073503]
[1646829887531,6.1038,2735.6,2734.9,0.00184608]
[1646829887732,0.029168,2735.2,2734.5,1.96360752]
[1646829887930,1.01950778,2734.9,2734.5,0.445]
[1646829888131,1.01950778,2734.9,2734.5,1.76804001]
[1646829888528,1.01950778,2734.9,2734.7,0.89891895]
[1646829888927,0.029168,2735.0,2734.8,0.19556751]
[1646829889329,0.029168,2735.0,2734.7,0.89891895]
[1646829889530,0.029168,2735.0,2734.9,0.67423174]
[1646829889729,1.21414,2735.2,2734.9,0.67423174]
[1646829889928,0.029168,2735.1,2734.9,0.67423174]
[1646829890328,0.029168,2735.1,2735.0,0.67423174]
[1646829890734,0.029168,2735.1,2734.9,0.67423174]
[1646829890928,0.029168,2735.1,2734.8,0.67423174]
[1646829891491,0.029168,2735.3,2735.0,1.80567865]
[1646829891690,0.029168,2735.4,2735.0,1.80567865]
[1646829892089,0.029168,2735.4,2735.1,1.11923174]
[1646829892487,0.029168,2735.4,2735.2,0.67423174]
[1646829892694,0.029168,2735.6,2735.3,3.945]
[1646829892887,231.94554906,2735.7,2735.5,12.72147011]
[1646829892888,231.94184948,2735.7,2735.5,12.72147011]
[1646829893090,231.94184948,2735.7,2735.6,1.11892286]
[1646829893290,231.94497085,2735.7,2735.6,1.11892286]
[1646829893489,231.94497085,2735.7,2735.6,0.445]
[1646829893686,231.94497085,2735.7,2735.6,0.64056751]
[1646829894092,231.94184948,2735.7,2735.6,0.64056751]
[1646829894387,231.94184948,2735.7,2735.6,0.19556751]
[1646829894388,231.97101748,2735.7,2735.6,0.19556751]
[1646829894592,231.97101748,2735.7,2735.2,0.67392286]
[1646829894830,1.22545598,2735.3,2735.1,0.67392286]
[1646829895030,1.22545598,2735.3,2735.0,0.67392286]
[1646829895328,1.22545598,2735.3,2734.9,0.67392286]
[1646829895329,1.25462398,2735.3,2734.9,0.67392286]
[1646829895938,1.22545598,2735.3,2734.8,0.67392286]
[1646829896135,1.22545598,2735.3,2734.6,0.67392286]
[1646829896334,1.22545598,2735.3,2734.5,0.67392286]
[1646829896335,0.029168,2735.0,2734.5,0.67392286]
[1646829896535,1.22545598,2735.3,2734.5,0.67392286]
[1646829896937,1.15093572,2734.8,2734.5,0.67392286]
[1646829897336,1.15093572,2734.8,2734.4,0.67392286]
[1646829897535,1.18010372,2734.8,2734.5,0.67392286]
[1646829897735,1.18010372,2734.8,2734.4,0.67392286]
[1646829898687,1.18010372,2734.8,2734.3,0.67734962]
[1646829898886,1.18010372,2734.8,2734.1,0.67392286]
[1646829899084,2.09462372,2734.8,2734.0,0.67392286]
[1646829899281,2.09462372,2734.8,2734.3,0.00342674]
[1646829899885,0.029168,2734.4,2734.3,0.00342674]
[1646829900088,6.5,2734.3,2734.2,0.07530989]
[1646829900285,3.5,2734.2,2733.6,0.67576069]
[1646829900489,0.029168,2734.0,2733.6,0.67392286]
[1646829900886,0.029168,2734.0,2733.6,0.86949037]
[1646829901289,0.91461,2734.1,2733.6,0.67392286]
[1646829901487,0.91461,2734.1,2733.5,0.67392286]
[1646829901488,0.029168,2733.9,2733.5,0.67392286]
[1646829901890,0.029168,2733.9,2733.6,0.91603242]
[1646829902735,1.858498,2733.9,2733.4,0.67392286]
[1646829902933,1.82933,2733.9,2733.2,0.67392286]
[1646829903137,0.029168,2733.4,2733.0,8.33392286]
[1646829903333,0.029168,2733.3,2733.0,7.36]
[1646829903740,2.12933,2733.9,2733.1,1.06448346]
[1646829903933,2.12933,2733.9,2733.1,1.0683286]
[1646829903934,1.10055312,2733.8,2733.1,1.0683286]
[1646829904135,2.12933,2733.9,2733.1,1.0683286]
[1646829904440,0.9147897,2733.7,2733.1,0.00384514]
[1646829904639,0.9149,2733.5,2733.1,0.00384514]
[1646829904834,0.9149,2733.5,2732.8,7.36]
[1646829905033,1.2149,2733.5,2732.8,7.36]
[1646829905234,1.2149,2733.5,2733.3,0.00384494]
[1646829905235,1.21722776,2733.4,2733.3,0.00384494]
[1646829905435,1.21722776,2733.4,2732.9,0.01538208]
[1646829905436,6.5038,2733.3,2732.9,0.01538208]
[1646829905637,9.5038,2733.3,2732.9,0.01538208]
[1646829905836,9.5038,2733.3,2732.9,8.208e-05]
[1646829906099,12.6122,2733.3,2732.1,2.41084562]
[1646829906291,12.6122,2733.3,2732.1,2.31268345]
[1646829906292,12.9122,2733.3,2732.1,2.31268345]
[1646829906488,0.9152162,2732.9,2732.1,2.31268345]
[1646829906690,4.8304562,2732.9,2732.1,2.31084562]
[1646829906891,0.92261282,2732.6,2732.1,2.31084562]
[1646829907192,0.92261282,2732.6,2732.0,8.44162378]
[1646829907389,3.0,2732.2,2731.8,0.0182347]
[1646829907590,4.83093,2732.2,2731.8,0.0182347]
[1646829907789,7.5771461,2732.2,2731.8,0.0182347]
[1646829907988,7.8771461,2732.2,2731.8,0.0182347]
[1646829908190,4.8771461,2732.2,2731.8,0.0182347]
[1646829908388,1.16602216,2732.1,2731.8,0.0182347]
[1646829908798,0.91552,2731.7,2730.5,2.4213814]
[1646829908994,0.91552,2731.7,2730.6,0.66795926]
[1646829908995,3.0,2731.2,2730.6,0.66795926]
[1646829909192,3.5069,2731.2,2730.2,0.07719076]
[1646829909394,5.74480964,2731.2,2730.2,0.07719076]
[1646829909592,5.74480964,2731.2,2730.4,0.86847432]
[1646829909593,1.01642422,2731.0,2730.4,0.86847432]
[1646829909838,1.1192,2731.0,2730.4,0.86847432]
[1646829910036,1.1192,2731.0,2730.4,0.9248276]
[1646829910037,2.03496,2731.0,2730.4,0.9248276]
[1646829910236,1.1192,2731.0,2730.4,0.9248276]
[1646829910435,1.4192,2731.0,2730.4,0.9248276]
[1646829910637,0.3,2731.0,2730.9,0.92931003]
[1646829910940,1.73790964,2731.2,2730.9,0.92931003]
[1646829911348,1.73790964,2731.2,2730.8,0.0346176]
[1646829911349,2.65347964,2731.2,2730.8,0.0346176]
[1646829912041,2.65347964,2731.2,2730.8,0.04705536]
[1646829912239,2.95347964,2731.2,2730.8,0.04705536]
[1646829912441,3.5,2731.1,2730.8,0.24262287]
[1646829912638,2.65347964,2731.2,2730.8,0.21749839]
[1646829912841,2.65347964,2731.2,2729.8,0.99459951]
[1646829913039,2.65347964,2731.2,2729.8,1.49723515]
[1646829913239,2.65347964,2731.2,2729.9,0.19556751]
[1646829913686,2.95347964,2731.2,2730.4,0.00376064]
[1646829913888,0.91565,2730.9,2730.4,0.00376064]
[1646829914282,1.21565,2730.9,2730.4,0.00376064]
[1646829914483,1.21565,2730.9,2730.2,0.0390398]
[1646829914484,1.73790964,2730.6,2730.2,0.0390398]
[1646829914681,3.47581928,2730.6,2730.2,0.0390398]
[1646829915081,0.91555,2731.1,2730.2,0.0390398]
[1646829915283,2.8514,2731.2,2730.3,1.32507862]
[1646829915484,1.1817,2731.4,2731.1,1.10445143]
[1646829915686,0.5,2731.3,2730.4,0.64056751]
[1646829915885,0.5,2731.3,2730.4,0.65916335]
[1646829916089,0.5,2731.3,2730.4,0.21416335]
[1646829916090,0.91555,2731.1,2730.4,0.21416335]
[1646829916289,0.5,2731.3,2730.4,0.21416335]
[1646829916493,0.3,2731.2,2730.4,0.21416335]
[1646829916691,0.5,2731.0,2730.8,0.90471016]
[1646829917091,0.5,2731.0,2730.8,0.90269316]
[1646829917741,0.5,2731.0,2730.6,0.01859584]
[1646829918540,0.5,2731.0,2730.7,0.00375526]
[1646829918739,0.5,2731.0,2730.9,0.91705573]
[1646829919145,0.5,2731.0,2730.7,0.00375526]
[1646829919341,0.5,2731.0,2730.6,0.01859584]
[1646829919742,0.5,2731.0,2730.8,0.00375512]
[1646829919943,0.45,2731.0,2730.8,0.00375512]
[1646829920346,0.5,2731.5,2730.9,0.395]
[1646829920544,5.9357,2732.9,2730.9,0.7581]
[1646829920545,1.1679,2732.1,2730.9,0.7581]
[1646829920747,3.9892,2732.3,2731.0,0.55866751]
[1646829921116,0.00375396,2731.6,2731.4,5.9281]
[1646829921316,0.015751,2732.9,2731.6,0.00174396]
[1646829921623,9.2552,2733.6,2732.3,5.9281]
[1646829921624,5.0795,2733.6,2732.3,5.9281]
[1646829921823,1.844961,2734.0,2732.5,11.4431]
[1646829922021,0.015751,2734.0,2733.9,0.96967027]
[1646829922225,3.0,2734.2,2733.9,0.96967027]
[1646829922226,3.0,2734.2,2733.9,2.52107027]
[1646829922420,3.0,2734.2,2733.9,1.5514]
[1646829922625,3.0,2734.2,2733.9,2.5514]
[1646829922824,3.0,2734.2,2733.9,1.5514]
[1646829923026,3.0,2734.2,2733.9,13.9314]
[1646829923223,11.5789,2735.2,2734.0,0.3631]
[1646829923425,1.0,2735.2,2734.7,1.22310353]
[1646829923624,1.0,2735.2,2734.7,0.85317777]
[1646829923825,1.0,2735.2,2734.8,0.445]
[1646829924223,1.0,2735.2,2734.8,11.525]
[1646829924428,1.0,2735.2,2734.8,0.8874]
[1646829924625,1.0,2735.2,2734.8,7.4492]
[1646829924832,2.354951,2736.5,2734.9,3.5]
[1646829924833,1.8275,2736.4,2734.9,3.5]
[1646829925035,3.268611,2736.5,2735.1,5.565]
[1646829925235,3.268611,2736.5,2735.3,11.08]
[1646829925434,3.268611,2736.5,2735.4,0.445]
[1646829925633,0.00121625,2735.5,2735.4,0.445]
[1646829925837,0.00121625,2735.5,2735.4,0.5834]
[1646829926039,224.95226573,2735.7,2735.4,11.07838751]
[1646829926237,224.95226573,2735.7,2735.6,5.565]
[1646829926436,224.95226573,2735.7,2735.6,6.01]
[1646829926637,219.47192573,2735.7,2735.6,7.4644]
[1646829926838,219.47192573,2735.7,2735.6,7.4588]
[1646829926839,186.06222573,2735.7,2735.6,7.4588]
[1646829927046,186.06222573,2735.7,2735.6,7.4596]
[1646829927242,186.06222573,2735.7,2735.6,7.4484]
[1646829927441,186.06222573,2735.7,2735.6,7.01]
[1646829927742,185.3645344,2735.7,2735.6,10.9476]
[1646829927942,179.8844944,2735.7,2735.6,7.65916751]
[1646829928143,179.8844944,2735.7,2735.6,7.67516751]
[1646829928344,179.8844944,2735.7,2735.6,12.87811315]
[1646829928345,174.4044544,2735.7,2735.6,12.87811315]
[1646829928591,174.4044544,2735.7,2735.6,16.98686751]
[1646829928791,174.4044544,2735.7,2735.6,19.72449751]
[1646829928995,174.4044544,2735.7,2735.6,19.71809751]
[1646829929192,174.4044544,2735.7,2735.6,19.72049751]
[1646829929394,174.4044544,2735.7,2735.6,19.40849751]
[1646829929600,174.4044544,2735.7,2735.6,9.7559]
[1646829929792,174.4044544,2735.7,2735.6,7.7559]
[1646829930199,168.9242344,2735.7,2735.6,7.95146751]
[1646829930399,168.9242344,2735.7,2735.6,25.73853971]
[1646829930600,167.50995404,2735.7,2735.6,25.76733971]
[1646829930802,151.20714617,2735.7,2735.6,28.81160771]
[1646829931099,0.0037682,2735.8,2735.6,32.14532808]
[1646829931301,5.026,2737.7,2735.8,11.6431]
[1646829931500,0.5,2738.2,2736.9,0.01280393]
[1646829931703,0.5,2738.2,2737.7,0.2121997]
[1646829931898,0.5,2738.2,2738.1,0.029168]
[1646829932103,0.5,2738.2,2738.1,0.645068]
[1646829932358,3.0,2740.4,2738.1,5.06998025]
[1646829932359,5.175268,2740.2,2738.1,5.06998025]
[1646829932540,8.6083,2740.1,2738.2,0.2]
[1646829932738,8.6083,2740.1,2738.9,0.2]
[1646829932940,8.6083,2740.1,2739.1,0.2]
[1646829933138,8.6083,2740.1,2739.3,0.2]
[1646829933342,8.6083,2740.1,2739.0,0.445]
[1646829934140,0.89864069,2739.8,2739.0,0.445]
[1646829934439,8.6083,2740.1,2739.0,0.445]
[1646829934642,8.6083,2740.1,2739.1,3.5]
[1646829934643,0.05002126,2739.7,2739.1,3.5]
[1646829934839,0.05002126,2739.7,2739.2,0.445]
[1646829935039,0.04945284,2739.6,2739.2,0.445]
[1646829935444,0.05266128,2739.5,2739.2,0.445]
[1646829935846,0.04831599,2739.4,2738.8,1.445]
[1646829936089,0.04831599,2739.4,2739.0,0.5]
[1646829936292,8.6083,2740.1,2739.0,0.5]
[1646829936293,0.04774757,2739.3,2739.0,1.41238]
[1646829936492,0.00377715,2739.2,2739.1,0.445]
[1646829936695,0.05095629,2739.2,2738.9,0.1496]
[1646829936892,0.05095629,2739.2,2738.6,3.445]
[1646829937095,0.04661072,2739.1,2738.6,3.445]
[1646829937496,0.0460423,2739.0,2738.6,3.445]
[1646829937698,0.04981969,2739.0,2738.6,3.445]
[1646829937893,0.04981969,2739.0,2738.7,3.5]
[1646829937894,0.04547387,2738.9,2738.7,3.5]
[1646829938097,0.04547387,2738.9,2738.8,0.445]
[1646829938294,0.00377739,2739.0,2738.8,4.3866]
[1646829938494,0.00377739,2739.0,2738.8,0.745]
[1646829938695,0.029168,2740.5,2738.9,3.0]
[1646829938896,0.029168,2740.5,2738.7,0.19556751]
[1646829938897,0.00119243,2739.0,2738.7,0.19556751]
[1646829939096,0.00119243,2739.0,2738.3,1.5]
[1646829939296,0.00119243,2739.0,2737.9,0.3662]
[1646829939495,0.029168,2738.7,2737.9,0.3662]
[1646829939941,0.91312,2738.9,2737.9,0.3662]
[1646829939942,0.0437686,2738.6,2737.9,0.3662]
[1646829940138,0.0437686,2738.6,2737.9,0.445]
[1646829940139,0.00365346,2738.4,2737.9,0.445]
[1646829940337,0.00365346,2738.4,2738.0,3.5]
[1646829940538,0.04206333,2738.3,2738.1,0.445]
[1646829940739,0.04206333,2738.3,2738.1,1.35768]
[1646829940937,0.00365346,2738.4,2738.2,3.69556751]
[1646829941142,3.5,2739.8,2738.2,5.29682]
[1646829941346,0.04206333,2738.3,2738.2,1.96102]
[1646829941549,0.04206333,2738.3,2737.3,0.1424]
[1646829941550,6.5,2738.2,2737.3,0.445]
[1646829941943,0.04092648,2738.1,2737.3,0.445]
[1646829942143,0.95614704,2738.1,2737.3,0.445]
[1646829942449,0.95614704,2738.1,2737.1,2.0]
[1646829942450,6.54035806,2738.0,2737.1,2.0]
[1646829942643,6.54035806,2738.0,2737.1,1.461]
[1646829942644,6.84035806,2738.0,2737.1,1.461]
[1646829942845,0.003654,2737.8,2737.1,1.461]
[1646829943446,0.99479173,2737.2,2737.1,1.461]
[1646829943683,0.99479173,2737.2,2737.1,3.0]
[1646829943884,0.9134328,2737.8,2737.1,3.0]
[1646829943885,0.3,2737.3,2737.1,3.0]
[1646829944383,0.00340538,2737.6,2737.1,3.0]
[1646829944782,1.2134328,2737.8,2736.1,3.5]
[1646829944988,0.3631,2737.7,2736.0,2.77168]
[1646829945185,1.1246451,2737.2,2736.0,2.46724751]
[1646829945584,1.1246451,2737.2,2736.1,6.5]
[1646829945784,1.1246451,2737.2,2736.2,0.445]
[1646829945985,0.3,2737.3,2736.3,3.5]
[1646829946192,0.3631,2737.7,2736.3,14.58]
[1646829946391,6.56952606,2738.0,2737.3,0.06251714]
[1646829946589,0.3,2737.8,2736.5,3.5]
[1646829946789,5.0,2737.9,2736.5,1.445]
[1646829946994,0.93114546,2737.3,2736.5,1.445]
[1646829947197,0.93114546,2737.3,2736.5,0.445]
[1646829947439,0.93214655,2737.3,2736.5,0.445]
[1646829947645,0.00100109,2737.3,2736.5,0.445]
[1646829948444,0.95370476,2738.0,2736.7,0.20724479]
[1646829948743,0.0010011,2737.0,2736.7,0.445]
[1646829949347,0.0010011,2737.0,2736.7,11.525]
[1646829949544,0.04035806,2738.0,2736.7,0.445]
[1646829949743,0.04035806,2738.0,2736.7,4.945]
[1646829949944,6.5,2736.8,2735.5,0.5374541]
[1646829950155,6.5,2736.8,2735.4,0.53642891]
[1646829950156,3.5,2736.7,2735.4,0.53642891]
[1646829950349,10.18,2736.6,2735.2,1.13526571]
[1646829950544,10.18,2736.6,2735.2,1.13344]
[1646829950545,0.029168,2736.1,2735.2,1.13344]
[1646829950747,1.182868,2736.1,2735.2,1.13344]
[1646829950945,1.182868,2736.1,2735.2,1.11184]
[1646829951190,1.182868,2736.1,2735.4,3.5]
[1646829951390,1.182868,2736.1,2735.5,1.82802]
[1646829951993,1.18828116,2736.3,2735.5,1.82802]
[1646829952191,3.9347,2736.4,2735.5,1.82802]
[1646829952990,3.9347,2736.4,2735.5,2.12802]
[1646829953192,3.9347,2736.4,2735.8,0.91389]
[1646829953997,0.91562527,2736.3,2735.8,0.91389]
[1646829954192,3.9347,2736.4,2735.8,0.91389]
[1646829954593,3.9347,2736.4,2735.8,4.41389]
[1646829955032,3.50379435,2736.3,2735.8,4.41389]
[1646829955233,3.50379435,2736.3,2735.8,4.39539]
[1646829955234,4.41788835,2736.3,2735.8,4.39539]
[1646829955437,4.44705635,2736.3,2735.3,9.578e-05]
[1646829956036,0.94518013,2735.9,2735.7,2.74165]
[1646829956235,0.94705635,2736.3,2735.7,2.74165]
[1646829956236,0.029168,2736.3,2735.7,2.74165]
[1646829956437,3.9347,2736.4,2735.7,2.74165]
[1646829957035,3.9347,2736.4,2735.7,3.74165]
[1646829957238,5.13233599,2736.4,2735.7,2.74165]
[1646829957836,3.9347,2736.4,2735.7,6.24165]
[1646829960089,0.029168,2736.7,2735.7,7.24165]
[1646829960090,0.04434348,2736.7,2735.7,7.24165]
[1646829960292,0.04434348,2736.7,2735.9,0.91369]
[1646829960490,0.04434348,2736.7,2736.0,0.10035964]
[1646829960693,0.13819997,2737.0,2735.8,3.65473]
[1646829960694,9.3651,2737.0,2736.7,1.82776]
[1646829961090,0.9136582,2737.6,2736.7,2.12776]
[1646829961293,5.31815806,2738.0,2736.7,2.12776]
[1646829961695,5.31815806,2738.0,2736.9,1.82683]
[1646829961696,4.95505806,2738.0,2736.9,1.82683]
[1646829961893,0.04035806,2738.0,2737.0,3.5]
[1646829962094,10.80377378,2739.9,2737.0,3.5]
[1646829962095,2.3411,2739.8,2737.1,1.3580598]
[1646829962360,2.3411,2739.8,2737.6,0.37534547]
[1646829962641,0.29995699,2739.9,2738.8,0.91271]
[1646829962841,0.66845838,2741.0,2738.8,0.91271]
[1646829962842,0.03109808,2741.2,2739.0,11.08]
[1646829963040,1.26792694,2741.0,2739.5,11.4431]
[1646829963242,6.2983103,2740.9,2739.5,2.73692]
[1646829963441,3.0,2740.5,2738.9,0.00529748]
[1646829963640,4.57706879,2740.4,2738.9,3.65093]
[1646829963840,1.26792694,2740.3,2738.9,3.65093]
[1646829964046,1.0605775,2739.5,2739.3,1.82587]
[1646829964241,0.9130792,2739.5,2738.9,3.65093]
[1646829964441,2.86540908,2740.2,2738.9,3.65093]
[1646829964641,4.20717463,2740.1,2738.9,3.65093]
[1646829965040,2.12015463,2740.1,2738.9,3.65093]
[1646829965241,0.91292,2739.8,2739.0,0.91303]
[1646829965444,0.66845838,2740.4,2739.0,0.91303]
[1646829965648,1.21344495,2740.3,2739.2,2.73791]
[1646829965848,1.21344495,2740.2,2739.3,0.445]
[1646829966087,3.0,2741.0,2739.3,1.57675]
[1646829966088,0.66845838,2740.8,2739.3,1.57675]
[1646829966293,0.66845838,2741.0,2739.4,0.91264]
[1646829966496,4.20353032,2741.1,2739.8,1.82467]
[1646829966698,0.01533032,2741.1,2739.9,0.445]
[1646829967495,0.01533032,2741.1,2740.2,0.9123]
[1646829967698,0.01533032,2741.1,2740.3,0.445]
[1646829967897,0.01533032,2741.1,2740.4,0.445]
[1646829968097,0.01533032,2741.1,2740.5,0.445]
[1646829968297,0.01533032,2741.1,2740.6,0.445]
[1646829968502,0.01533032,2741.1,2740.7,0.445]
[1646829968898,0.03066064,2741.1,2740.7,0.445]
[1646829969098,0.03066064,2741.1,2740.7,3.1815]
[1646829969399,0.03109808,2741.2,2740.7,3.1815]
[1646829969598,0.03109808,2741.2,2740.7,4.1815]
[1646829970040,0.03109808,2741.2,2740.7,3.1815]
[1646829971050,0.03109808,2741.2,2740.2,3.18189]